Cogmind - Beta 12 @@@ ROGUE MODE // 2023.05.09 @ 11:17:56 Player: MoonDog Result: Self-destructed Performance ------------- Evolutions (1) 500 Regions Visited (2) 400 Robots Destroyed (6) 30 Value Destroyed (94) 94 Prototype IDs (0) 0 Alien Tech Used (0) 0 Bonus (0) 0 TOTAL SCORE: 1024 Bonus ------- None Cogmind --------- Core Integrity 377/400 Matter 232/300 Energy 207/265 System Corruption 0% Temperature Danger (452) Movement Treading (160) Location -9/Materials Parts ------- > --- POWER (1) -------- Improved Ion Engine > --- PROPULSION (2) --- Light Treads Light Treads > --- UTILITY (4) ------ Improved Targeting Computer Light Armor Plating Light Armor Plating Trap Extractor (0/4) > --- WEAPON (2) ------- Particle Cannon Autogun > --- INVENTORY (5) ---- Sensor Array High-powered Tractor Beam Trap Extractor (0/4) Medium Laser Particle Cannon Peak State ------------ > --- POWER ------------ Improved Ion Engine > --- PROPULSION ------- Light Treads Light Treads > --- UTILITY ---------- Light Armor Plating Light Armor Plating Trap Extractor Trap Extractor > --- WEAPON ----------- Particle Cannon Particle Cannon > --- INVENTORY -------- Sensor Array High-powered Tractor Beam Trap Extractor Medium Laser Autogun [Rating: 14] Favorites ----------- Power Light Ion Engine Engine Light Ion Engine Propulsion Aluminum Leg Treads Light Treads Leg Aluminum Leg Utility Trap Extractor Device Trap Extractor Processor Improved Targeting Computer Protection Light Armor Plating Weapon Particle Cannon Energy Gun Medium Laser Energy Cannon Particle Cannon Ballistic Gun Light Assault Rifle Build | -11 -10 -9 ------- Run | Jun Mat Mat Slots Evolved 2 | . . 2 Power . | . . . Propulsion . | . . . Utility 2 | . . 2 Weapon . | . . . Parts Attached 17 | 5 3 9 Power 3 | 1 1 1 Engine 3 | 1 1 1 Core . | . . . Reactor . | . . . Propulsion 4 | 2 . 2 Treads 2 | . . 2 Leg 2 | 2 . . Wheel . | . . . Hover . | . . . Flight . | . . . Utility 5 | . 2 3 Device 2 | . 2 . Storage . | . . . Processor 1 | . . 1 Hackware . | . . . Protection 2 | . . 2 Artifact . | . . . Weapon 5 | 2 . 3 Energy Gun 1 | 1 . . Energy Cannon 2 | . . 2 Ballistic Gun 2 | 1 . 1 Ballistic Cannon . | . . . Launcher . | . . . Special Weapon . | . . . Impact Weapon . | . . . Slashing Weapon . | . . . Piercing Weapon . | . . . Special Melee Weapon . | . . . Unidentified Prototypes . | . . . Parts Lost . | . . . Power . | . . . Propulsion . | . . . Utility . | . . . Weapon . | . . . Highest Loss Streak . | . . . To Critical Strikes . | . . . Average Slot Usage (%) 88 | . 88 87 Engine 10 | . 9 11 Treads 8 | . . 11 Leg 15 | . 28 9 Device 20 | . 21 19 Processor 1 | . . 2 Protection 7 | . . 11 Energy Gun 4 | . 14 . Energy Cannon 12 | . . 18 Ballistic Gun 5 | . 14 1 Naked Turns . | . . . Heaviest Build 25 | 3 10 25 Greatest Support 40 | 3 20 40 Greatest Overweight (x) 1 | . . 1 Average Overweight (x) . | . . . Largest Inventory Capacity 5 | 5 5 5 Average Capacity 5 | 5 5 5 Most Carried 5 | 1 3 5 Average Carried 3 | . 2 4 Final Capacity 5 | 5 5 5 Final Carried 5 | 1 3 5 Class Distribution -------------------- 100% | Mutant Dominant Class ---------------- Mutant | -10/Materials Mutant | -9/Materials Resources | -11 -10 -9 ----------- Run | Jun Mat Mat Matter Collected 373 | 262 . 111 Remotely . | . . . Salvage Created 343 | 94 . 249 Parts 13 | 1 . 12 Haulers Intercepted 1 | . . 1 Recyclers Shooed . | . . . Parts Field Recycled . | . . . Retrieved Matter . | . . . Parts Self-Destructed . | . . . Prevented . | . . . Kills | -11 -10 -9 ------- Run | Jun Mat Mat Combat Hostiles Destroyed 2 | . . 2 Cannons 2 | . . 2 Classes Destroyed 5 | 1 . 4 Worker 1 | . . 1 Hauler 1 | . . 1 Recycler 2 | 1 . 1 Grunt 1 | . . 1 Sentry 1 | . . 1 Best Kill Streak 2 | 1 . 2 Combat Bots Only 1 | . . 1 Max Kills in Single Turn 1 | 1 . 1 Gunslinging . | . . . Exploded . | . . . Melee . | . . . Uniques/NPCs Destroyed . | . . . Combat | -11 -10 -9 -------- Run | Jun Mat Mat Damage Taken 271 | . . 271 Core 23 | . . 23 Absorbed by Shields . | . . . Core Remaining (%) 100 | 100 100 . Volleys Fired 32 | 12 1 19 Largest 2 | 1 2 2 Hottest 136 | 20 70 136 Shots Fired 45 | 12 2 31 Gun 21 | 12 2 7 Cannon 24 | . . 24 Launcher . | . . . Special . | . . . Kinetic 20 | 12 1 7 Thermal 25 | . 1 24 Explosive . | . . . Electromagnetic . | . . . Robot Hit Streak 8 | 5 7 8 Robot Miss Streak 4 | 2 . 4 Penetration Max . | . . . Secondary Targets . | . . . Shots Hit Robots 25 | 9 2 14 Core Hits 9 | 3 1 5 Critical Kills . | . . . Critical Parts Destroyed . | . . . Critical Strikes . | . . . Melee Attacks . | . . . Impact . | . . . Slashing . | . . . Piercing . | . . . Sneak Attacks . | . . . Combat Hostiles . | . . . Follow-up Attacks . | . . . Damage Inflicted 466 | 68 21 377 Guns 179 | 68 21 90 Cannons 287 | . . 287 Explosions . | . . . Melee . | . . . Ramming . | . . . Kinetic 166 | 68 8 90 Thermal 300 | . 13 287 Explosive . | . . . Electromagnetic . | . . . Impact . | . . . Slashing . | . . . Piercing . | . . . Highest Corruption . | . . . Average Corruption . | . . . Corruption Purged . | . . . Corruption Blocked . | . . . Overload Shots . | . . . Overflow Damage . | . . . Projectiles . | . . . Explosions . | . . . Melee . | . . . Knockbacks . | . . . Impact . | . . . Kinetic . | . . . Secondary . | . . . Self-Inflicted Damage . | . . . Shots . | . . . Rammed . | . . . Targets Rammed . | . . . Kicked . | . . . Crushed . | . . . Highest Temperature 468 | . 30 468 Average Temperature 150 | . 18 155 Received Heat Transfer 135 | . . 135 Effects 4 | . . 4 Energy Bleed 1 | . . 1 Interference 2 | . . 2 Matter Decay 1 | . . 1 Siege Activations . | . . . Robots Corrupted . | . . . Combat Hostiles . | . . . Parts Fried . | . . . Impact Corruptions . | . . . Robots Melted . | . . . Combat Hostiles . | . . . Parts Melted . | . . . Heat Transferred 555 | . 37 518 Parts Sabotaged . | . . . Parts Stolen . | . . . Parts Stripped . | . . . Power Chain Reactions . | . . . Missiles Intercepted . | . . . Alert | -11 -10 -9 ------- Run | Jun Mat Mat Peak Influence 103 | 5 18 103 Initial 7 | . 3 7 Average 26 | . 3 44 Maximum Alert Level . | . . . Low Security (%) 100 | 100 100 100 Level 1 . | . . . Level 2 . | . . . Level 3 . | . . . Level 4 . | . . . Level 5 . | . . . High Security . | . . . Max Security . | . . . Squads Dispatched 2 | . 1 1 Investigation . | . . . Extermination . | . . . Reinforcement 2 | . 1 1 Assault . | . . . Garrison . | . . . Intercept . | . . . Searches Triggered . | . . . Construction Impeded . | . . . Haulers Reinforced . | . . . Active Scanning Responses . | . . . Cargo Convoy Interrupts . | . . . Stealth | -11 -10 -9 --------- Run | Jun Mat Mat Distress Signals . | . . . Communications Jammed . | . . . Distress Signals . | . . . Times Spotted 5 | . 1 4 Peak Tracking Total 5 | . . 5 Tactical Retreats . | . . . Traps | -11 -10 -9 ------- Run | Jun Mat Mat Traps Triggered . | . . . Indirectly . | . . . Trap Hack Attempts . | . . . Triggered . | . . . Disarmed . | . . . Reprogrammed . | . . . Reused . | . . . Traps Extracted . | . . . Installed . | . . . Triggered . | . . . Machines | -11 -10 -9 ---------- Run | Jun Mat Mat Machines Disabled . | . . . Max in Single Turn . | . . . Machines Repaired . | . . . Machines Sabotaged . | . . . Overloaded Fab Kills . | . . . Hacking | -11 -10 -9 --------- Run | Jun Mat Mat Machines Accessed 4 | . 2 2 Terminals 4 | . 2 2 Fabricators . | . . . Repair Stations . | . . . Recycling Units . | . . . Scanalyzers . | . . . Garrison Access . | . . . Total Hacks 16 | . 5 11 Successful 9 | . . 9 Failed 7 | . 5 2 Catastrophic 2 | . 2 . Database Lockouts . | . . . Manual 14 | . 4 10 Terminals 16 | . 5 11 Fabricators . | . . . Repair Stations . | . . . Recycling Units . | . . . Scanalyzers . | . . . Garrison Access . | . . . Terminal Hacks 4 | . . 4 Terminal Index 1 | . . 1 Locate Traps 1 | . . 1 Dispatch Records 1 | . . 1 Zone Layout 1 | . . 1 Fabricator Hacks . | . . . Repair Station Hacks . | . . . Recycling Unit Hacks . | . . . Scanalyzer . | . . . Garrison Access Hacks . | . . . Unauthorized Hacks 5 | . . 5 Terminals 5 | . . 5 Track 2 | . . 2 Botnet 2 | . . 2 Operators 1 | . . 1 Fabricators . | . . . Repair Stations . | . . . Recycling Units . | . . . Scanalyzers . | . . . Garrison Access . | . . . Data Cores Recovered . | . . . Used . | . . . Hacking Detections 4 | . 2 2 Full Trace Events . | . . . Feedback Events . | . . . Feedback Blocked . | . . . Robot Schematics Acquired . | . . . Robots Built . | . . . Authchips . | . . . Time . | . . . Total Robot Build Rating . | . . . Part Schematics Acquired . | . . . Parts Built . | . . . Authchips . | . . . Time . | . . . Total Part Build Rating . | . . . Parts Repaired . | . . . Time . | . . . Parts Recycled . | . . . Recycled Matter . | . . . Retrieved Matter . | . . . Retrieved Components . | . . . Parts Scanalyzed . | . . . Part Schematics Acquired . | . . . Parts Damaged . | . . . Bothacking | -11 -10 -9 ------------ Run | Jun Mat Mat Used RIF Installer . | . . . Robots Hacked . | . . . Non-combat . | . . . Combat . | . . . Robot Hacks Applied . | . . . Relay Couplers Released . | . . . Fabnet Peak Effective % . | . . . Robots Rewired . | . . . Allies Hacked . | . . . Hacks Repelled . | . . . Allies | -11 -10 -9 -------- Run | Jun Mat Mat Total Allies . | . . . Largest Group . | . . . Highest-Rated Group . | . . . Highest-Rated Ally . | . . . Total Orders . | . . . Ally Attacks . | . . . Total Damage . | . . . Kills . | . . . Allies Corrupted . | . . . Allies Melted . | . . . Intel | -11 -10 -9 ------- Run | Jun Mat Mat Robot Analysis Total . | . . . Derelict Logs Recovered . | . . . Drone Launches . | . . . Drone Recoveries . | . . . Exploration | -11 -10 -9 ------------- Run | Jun Mat Mat Turns Passed 478 | 62 135 281 Spaces Moved 342 | 65 136 141 Core 121 | 65 56 . Treads 71 | . . 71 Legs 150 | . 80 70 Wheels . | . . . Hover . | . . . Flight . | . . . Fastest Speed 50 | 50 50 120 Average Speed 104 | 50 91 141 Slowest Speed 240 | 50 120 240 Overloaded Moves . | . . . Propulsion Burnouts . | . . . Robots Hopped . | . . . Cave-ins Triggered . | . . . Exploration Rate (%) 18 | 4 31 20 Regions Visited 2 Branch Regions . Pre-discovered Areas . | . . . Known Exits Taken . | . . . Unknown Exits Taken 2 | 1 1 . Scrap Searched . | . . . Spaces Dug . | . . . Terrain Destroyed . | . . . Melee . | . . . Projectile . | . . . AOE . | . . . Terrain Rammed . | . . . Walls Destroyed . | . . . Machines Disabled . | . . . Actions | -11 -10 -9 --------- Run | Jun Mat Mat Total 417 | 82 144 191 Wait 16 | . 2 14 Move 340 | 64 135 141 Hop . | . . . Pick Up 4 | . 3 1 Fast Attach 14 | 5 2 7 Attach 1 | . 1 . Detach 3 | 1 . 2 Swap 2 | . . 2 Drop 5 | . . 5 Fire 32 | 12 1 19 Melee . | . . . Ram . | . . . Kick . | . . . Crush . | . . . Escape Stasis . | . . . Rewire . | . . . Trap . | . . . Miscellaneous . | . . . Route ------- -11/Junkyard -10/Materials -9/Materials (discovered 1 exit: [*Min]) History --------- Turn | Location | Event 6 | -11/Junkyard | Discovered new exit (range 15) 63 | -11/Junkyard | Entered Materials 175 | -10/Materials | Discovered new exit (range 15) 198 | -10/Materials | Entered another Materials area 198 | -9/Materials | Evolved 2 slots: Utility x2 308 | -9/Materials | Build established: Mutant 435 | -9/Materials | Discovered new exit (range 6) 479 | -9/Materials | Self-destructed Last Messages --------------- 00398_ K-01 Serf collects debris. 00401_ K-01 Serf cleans the Processing Tank. 00404_ K-01 Serf collects debris. 00411_ Dropped Trap Extractor. 00412_ Acquired Imp. Targeting Computer. 00418_ K-01 Serf cleans the Processing Tank. 00426_ K-01 Serf destroyed. 00427_ Extracted 56 matter. 00431_ R-06 Scavenger collects Trap Extractor. 00435_ EXIT=FOUND 00438_ A-02 Transporter destroyed. 00446_ ALERT: Hostiles spotted, dispatching reinforcements to Terminal M010. 00450_ R-06 Scavenger collects Lgt. Treads. 00451_ R-06 Scavenger collects Prototype Flight Unit. 00467_ G-34 Mercenary destroyed. 00470_ Overheating: Matter decay (-30). 00476_ R-06 Scavenger destroyed. 00478_ Overheating: Energy bleed (-66). 00478_ R-06 Scavenger collects Com. Wheel. Map ----- +----------------------------------------------------+ | ?????????????????????????????????????????????????? | | ?????????????????????????????????????????????????? | | ?????????????????????????????????????????????????? | | ?????????????????????????????????????????????????? | | ?????????????????????????????????????????????????? | | ?????????????????????????????????????????????????? | | ?????????????????????????????????????????????????? | | ??????????????????????????????????????????o??????? | | ?????????????????????????????????????????????????? | | ?????????????????????????????????????????????????? | | ????????????????????????? ?????????????????????? | | ????????????????????????? +????????????????????? | | ????????????????????????? #????????????????????? | | ?????????????????????????r #????????????????????? | | ????????????????????????#% #????????????????????? | | ????????????????????????#! #????????????????????? | | ????????????????????????# #????????????????????? | | ????????????????????????# #????????????????????? | | ???????????????????????## ####?????????????????? | | ???????????????????????# ! "#?????????????????? | | ???????????????????????# ""#?????????????????? | | ???????????????????????# g !!#?????????????????? | | ???????????????????????#=%< ""#?????????????????? | | ???????????????????????# = ||#?????????????????? | | ???????????????????????# ""#?????????????????? | | ???????????????????????# @ "#?????????????????? | | ??????????????########### ####?????????????????? | | ??????????????# # #????????????????????? | | ??????????????# + #????????????????????? | | ??????????????# """"" # +????????????????????? | | ??????????????# """"" # # ???????????????????? | | ??????????????# """""%# # ??????????????????? | | ??????????????# !# #?+#?????????????????? | | ??????????????# # ????????????????????? | | ??????????????# ! # ???????????????????? | | ??????????????########+## ??????????????????? | | ?????????????????????# #######+#?????????????????? | | ?????????????????????# #?????????????????????????? | | ?????????????????????# #?????????????????????????? | | ?????????????????????# #?????????????????????????? | | ?????????????????????# #?????????????????????????? | | ?????????????????????# #?????????????????????????? | | ??????????????######?# #?????????????????????????? | | ??????????????# !! # #?????????????????????????? | | ??????????????# ! # #?????????????????????????? | | ??????????????# + #?????????????????????????? | | ??????????????# # #?????????????????????????? | | ??????????????# # #?????????????????????????? | | ??????????????# ?# #????????????????? ?????? | | ? # ######### ########?????????# ?????? | +----------------------------------------------------+ Best States ------------- Heat Dissipation 28 Energy Generation 12 Energy Capacity 265 Matter Stores 300 Matter Capacity 300 Sight Range 16 Terrain Scan Density 10 Armor Coverage 300 Evasion (%) 55 Targeting Accuracy 6 Recoil Reduction 2 Trap Extractor Capacity 4 Item Schematics ----------------- None Robot Schematics ------------------ None Fabricated ------------ Nothing Alien Tech Used ----------------- None Achievements -------------- None Challenges ------------ None Game ------ Seed AlphaFluxArray Manual? 0 Play Time 00:20:57 Cumulative 126.5 hours Start 2023.05.09 @ 03:58:11 End 2023.05.09 @ 11:17:56 Sessions 1 Manual Loads 0 Difficulty Rogue Special Mode None Game No. 111 Rogue 111 Adventurer 0 Explorer 0 Win Type - Total 1 Types 1/0/0/0/0/0/0/0/0 Lore% 39 Gallery% 55 Achievement% 46 Wizard Run 0 Options --------- ASCII 0 Keyboard 0 Movement Numpad Keybinds 0 Fullscreen 2 Font 18/SmallcapsGlow Map View 76x50 Tactical HUD 1 Map Filters NONE Filters NONE Steam 1 RUN: fc658215-dd46-421f-994a-b8177dd0f447